bitfinex-derivatives/quotes_SOLF0:USTF0_20240910
["timestamp","ask_amount","ask_price","bid_price","bid_amount"]
[1726010609188,3.6744,136.07,136.03,11.31]
[1726010609903,3.6744,136.07,136.02,11.31]
[1726010612904,3.6746,136.06,136.02,11.31]
[1726010614903,3.6746,136.06,136.03,11.31]
[1726010615304,3.6745,136.07,136.03,11.31]
[1726010621712,3.6745,136.07,135.99,4.0996]
[1726010621913,3.6745,136.07,136.04,11.31]
[1726010622707,3.6745,136.07,135.99,4.0996]
[1726010622916,11.31,136.11,136.05,11.31]
[1726010623102,11.31,136.11,136.05,15.05522199]
[1726010626614,11.31,136.12,136.07,11.31]
[1726010627316,12.6399,136.13,136.07,14.9843]
[1726010627711,12.6399,136.13,136.07,11.31]
[1726010627913,11.31,136.11,136.05,3.74522199]
[1726010628118,11.31,136.11,136.04,11.31]
[1726010628809,11.31,136.09,135.99,4.0996]
[1726010629014,11.31,136.09,136.03,11.31]
[1726010632022,1.3299,136.13,136.03,11.31]
[1726010632318,11.31,136.1,136.04,11.31]
[1726010633421,1.3299,136.13,136.06,11.31]
[1726010633616,1.3299,136.13,136.09,11.31]
[1726010633827,1.3299,136.13,136.06,3.60208731]
[1726010634016,1.3299,136.13,136.08,11.31]
[1726010634211,1.3976,136.14,136.09,3.68219902]
[1726010634414,1.3976,136.14,136.09,11.31]
[1726010634616,1.3976,136.14,136.08,14.9838]
[1726010634815,1.3976,136.14,136.08,15.07598559]
[1726010635015,11.31,136.13,136.08,3.76598559]
[1726010635215,1.3782,136.15,136.09,11.31]
[1726010635522,11.31,136.12,135.99,4.0996]
[1726010635820,11.31,136.11,135.99,4.0996]
[1726010636011,2.6256,136.14,136.03,11.31]
[1726010636213,2.6256,136.14,136.03,14.9852]
[1726010636414,2.6256,136.14,136.03,11.31]
[1726010636415,11.31,136.08,136.03,11.31]
[1726010637020,2.6256,136.14,136.04,11.31]
[1726010637220,11.31,136.1,136.04,11.31]
[1726010637827,11.31,136.08,136.03,11.31]
[1726010638824,11.31,136.06,135.99,4.0996]
[1726010639029,11.31,136.05,136.0,11.31]
[1726010639225,11.31,136.05,135.99,4.0996]
[1726010639431,1.3394,136.1,135.99,15.4096]
[1726010639629,11.31,136.05,135.99,15.4096]
[1726010639930,11.31,136.06,136.0,11.31]
[1726010640321,1.3818,136.08,135.99,11.31]
[1726010640719,11.31,136.04,135.99,11.31]
[1726010640920,11.31,136.03,135.98,3.71505946]
[1726010641529,11.31,136.03,135.97,14.9869]
[1726010641726,11.31,136.03,135.97,11.31]
[1726010641922,11.31,136.03,135.97,15.06909725]
[1726010642830,1.3818,136.08,135.99,11.31]
[1726010643034,11.31,136.04,135.99,11.31]
[1726010643534,11.31,136.04,135.98,14.9868]
[1726010644228,11.31,136.04,135.99,3.65183823]
[1726010645136,1.3818,136.08,136.0,11.31]
[1726010645329,11.31,136.06,136.0,11.31]
[1726010647728,11.31,136.04,135.99,14.9865]
[1726010648234,11.31,136.04,135.99,11.31]
[1726010648431,11.31,136.06,136.0,11.31]
[1726010648838,1.36,136.05,136.0,11.31]
[1726010649437,12.67,136.05,136.0,11.31]
[1726010655347,1.36,136.05,136.0,14.9862]
[1726010655548,1.36,136.05,136.02,11.31]
[1726010658044,11.31,136.07,136.02,11.31]
[1726010658347,1.3818,136.08,136.03,11.31]
[1726010659235,1.3818,136.08,136.03,14.9854]
[1726010660835,11.31,136.07,136.02,3.6756]
[1726010661247,11.31,136.07,136.01,11.31]
[1726010661450,12.6918,136.08,136.03,11.31]
[1726010661948,12.6918,136.08,136.03,14.9853]
[1726010662146,1.3818,136.08,136.03,14.9853]
[1726010662346,12.6918,136.08,136.03,14.9853]
[1726010663249,1.3818,136.08,136.03,14.9853]
[1726010663545,1.3818,136.08,136.03,11.31]
[1726010663848,1.3818,136.08,136.03,14.9852]
[1726010665346,1.3818,136.08,136.03,11.31]
[1726010667147,1.3818,136.08,136.02,3.6756]
[1726010667148,11.31,136.07,136.02,3.6756]
[1726010667344,11.31,136.06,135.99,4.1699]
[1726010667548,11.31,136.04,135.98,15.04014705]
[1726010667744,11.31,136.04,135.98,11.31]
[1726010668352,11.31,136.04,135.97,11.31]
[1726010668948,11.31,136.04,135.98,3.71902345]
[1726010669958,11.31,136.04,135.98,18.70572345]
[1726010676455,11.31,136.04,135.98,3.71902345]
[1726010676660,11.31,136.04,135.97,3.677]
[1726010676859,11.31,136.04,135.98,11.31]
[1726010677263,11.31,136.04,135.98,14.99951316]
[1726010678152,11.31,136.04,135.98,11.31]
[1726010680362,11.31,136.04,135.97,7.32182524]
[1726010680565,11.31,136.03,135.97,7.32182524]
[1726010680757,13.9234,136.03,135.97,7.32182524]
[1726010681358,13.9234,136.03,135.97,3.677]
[1726010681656,13.9234,136.03,135.98,11.31]
[1726010686967,13.9234,136.03,135.97,11.31]
[1726010687761,11.31,136.01,135.95,14.9875]
[1726010687964,11.31,136.01,135.92,4.1265]
[1726010688166,11.31,136.01,135.94,11.31]
[1726010689173,11.31,136.01,135.94,14.9876]
[1726010689373,11.31,136.01,135.94,11.31]
[1726010689563,11.31,136.0,135.92,4.1265]
[1726010689759,11.31,135.98,135.92,15.4365]
[1726010690064,11.31,135.98,135.92,19.1149]
[1726010690266,11.31,135.98,135.92,11.31]
[1726010690560,11.31,135.99,135.94,11.31]
[1726010696973,11.31,135.98,135.92,11.31]
[1726010697574,11.31,135.98,135.91,7.37469601]
[1726010697775,11.31,135.98,135.92,11.31]
[1726010697971,11.31,135.98,135.91,3.6785]
[1726010698166,11.31,135.98,135.91,14.9885]
[1726010698670,11.31,135.98,135.91,18.73730435]
[1726010698977,11.31,135.98,135.91,14.9885]
[1726010699275,11.31,135.98,135.91,3.6785]
[1726010699476,11.31,135.98,135.91,14.9885]
[1726010701277,11.31,135.96,135.9,14.9888]
[1726010701474,11.31,135.96,135.9,3.6788]
[1726010701879,11.31,135.95,135.89,3.679]
[1726010702077,11.31,135.94,135.89,11.31]
[1726010702373,2.725,135.96,135.89,11.31]
[1726010702573,14.035,135.96,135.89,11.31]
[1726010702980,14.035,135.96,135.89,14.989]
[1726010703370,14.035,135.96,135.89,11.31]
[1726010703576,14.035,135.96,135.9,3.6789]
[1726010705875,14.035,135.96,135.9,14.9889]
[1726010707878,14.035,135.96,135.9,3.6789]
[1726010709384,11.31,135.95,135.9,3.6789]
[1726010712074,11.31,135.95,135.89,14.9891]
[1726010713878,11.31,135.95,135.89,3.6791]
[1726010714080,11.31,135.95,135.88,18.60944852]
[1726010714281,11.31,135.94,135.87,11.31]
[1726010714481,11.31,135.92,135.87,11.31]
[1726010716500,11.31,135.92,135.87,14.9897]
[1726010717099,11.31,135.94,135.87,14.9897]
[1726010717294,11.31,135.94,135.88,11.31]
[1726010720896,11.31,135.92,135.87,14.9897]
[1726010729805,11.31,135.91,135.86,3.68901217]
[1726010730010,11.31,135.91,135.85,11.31]
[1726010730209,11.31,135.91,135.86,3.75845543]
[1726010731008,11.31,135.91,135.85,14.9902]
[1726010731605,11.31,135.91,135.85,18.59817004]
[1726010733608,11.31,135.9,135.85,3.60797004]
[1726010733808,11.31,135.9,135.84,14.9905]
[1726010734504,11.31,135.9,135.85,3.76664574]
[1726010737615,11.31,135.89,135.83,3.6808]
[1726010737812,11.31,135.87,135.82,4.0211]
[1726010738310,11.31,135.86,135.81,11.31]
[1726010738715,11.31,135.86,135.8,11.31]
[1726010739516,11.31,135.86,135.81,3.71373549]
[1726010739911,11.31,135.86,135.72,1.3458]
[1726010740116,11.31,135.86,135.79,11.31]
[1726010740306,11.31,135.86,135.8,3.76821392]
[1726010740511,11.31,135.85,135.8,3.76821392]
[1726010740910,11.31,135.82,135.78,3.74023851]
[1726010741111,0.0404708,135.8,135.75,11.31]
[1726010741315,0.0404708,135.8,135.76,3.72036125]
[1726010741511,0.0404708,135.8,135.76,7.40306125]
[1726010741711,0.0404708,135.8,135.76,18.71306125]
[1726010741914,0.0404708,135.8,135.78,11.31]
[1726010742111,0.0404708,135.8,135.79,14.9919]
[1726010742511,11.31,135.87,135.79,15.0517109]
[1726010742719,11.31,135.87,135.82,11.31]
[1726010743713,4.0535,135.88,135.8,3.74032848]
[1726010743714,4.0535,135.88,135.83,11.31]
[1726010745728,15.3635,135.88,135.82,14.991]
[1726010749417,15.3635,135.88,135.83,3.6808]
[1726010751322,11.31,135.89,135.84,3.6805]
[1726010752024,11.31,135.89,135.83,14.9907]
[1726010752423,11.31,135.89,135.83,11.31]
[1726010752624,11.31,135.88,135.83,11.31]
[1726010752823,11.31,135.88,135.82,14.991]
[1726010753022,11.31,135.86,135.81,3.6813]
[1726010753623,11.31,135.86,135.8,14.9915]
[1726010754729,11.31,135.86,135.8,11.31]
[1726010754928,11.31,135.86,135.79,7.43308847]
[1726010755129,11.31,135.85,135.79,18.74308847]
[1726010755333,11.31,135.85,135.79,14.9918]
[1726010756727,11.31,135.85,135.79,11.31]
[1726010759133,11.31,135.86,135.79,11.31]
[1726010759528,11.31,135.86,135.79,14.9918]
[1726010759728,11.31,135.85,135.79,14.9918]
[1726010761437,11.31,135.85,135.79,11.31]
[1726010764042,11.31,135.85,135.79,14.9919]
[1726010764331,11.31,135.85,135.79,11.31]
[1726010765133,11.31,135.85,135.79,14.9918]
[1726010766835,11.31,135.85,135.79,11.31]
[1726010767033,11.31,135.86,135.81,11.31]
[1726010768540,11.31,135.86,135.8,3.6815]
[1726010768936,11.31,135.85,135.79,14.9918]
[1726010770031,11.31,135.83,135.78,18.71735093]
[1726010770839,11.31,135.83,135.79,3.6819]
[1726010774937,11.31,135.82,135.78,3.6821]
[1726010775141,11.31,135.84,135.78,18.65510905]
[1726010778248,11.31,135.82,135.72,1.4125]
[1726010778452,11.31,135.82,135.76,11.31]
[1726010778748,11.31,135.82,135.76,15.00494642]
[1726010778948,1.3146,135.87,135.76,18.68754642]
[1726010779154,1.3146,135.87,135.76,15.00494642]
[1726010779155,11.31,135.81,135.76,15.00494642]
[1726010780349,11.31,135.81,135.76,11.31]
[1726010780753,11.31,135.81,135.75,3.69973309]
[1726010780944,11.31,135.8,135.74,11.31]
[1726010781146,11.31,135.8,135.74,14.9169452]
[1726010781456,11.31,135.8,135.74,15.06827783]
[1726010782158,11.31,135.8,135.72,5.0962]
[1726010782449,11.31,135.8,135.73,11.31]
[1726010782654,11.31,135.78,135.73,11.31]
[1726010784262,11.31,135.78,135.73,14.9935]
[1726010787259,11.31,135.78,135.73,11.31]
[1726010787455,11.31,135.78,135.72,5.0962]
[1726010789358,11.31,135.78,135.72,11.31]
[1726010789763,11.31,135.78,135.72,14.9936]
[1726010790167,11.31,135.78,135.72,11.31]
[1726010790854,11.31,135.78,135.73,3.6835]
[1726010793167,11.31,135.78,135.73,14.9935]
[1726010796565,11.31,135.78,135.73,11.31]
[1726010797158,11.31,135.78,135.72,14.9937]
[1726010797465,11.31,135.77,135.72,14.9937]
[1726010797865,11.31,135.77,135.72,11.31]
[1726010798171,11.31,135.77,135.71,14.994]
[1726010798967,11.31,135.77,135.71,11.31]
[1726010799170,11.31,135.76,135.71,11.31]
[1726010799581,11.31,135.76,135.71,14.994]
[1726010804682,11.31,135.76,135.71,3.684]
[1726010804883,11.31,135.73,135.68,2.6536]
[1726010805077,11.31,135.73,135.67,3.62281541]
[1726010805280,11.31,135.71,135.66,14.9953]
[1726010805782,11.31,135.71,135.67,3.697318]
[1726010806177,11.31,135.71,135.65,3.6856]
[1726010806381,11.31,135.71,135.66,11.31]
[1726010806580,11.31,135.71,135.63,4.1194]
[1726010806581,11.31,135.73,135.67,11.31]
[1726010807179,11.31,135.73,135.66,3.6852]
[1726010807382,11.31,135.73,135.67,11.31]
[1726010807774,11.31,135.73,135.67,14.9951]
[1726010809280,11.31,135.71,135.67,11.31]
[1726010809681,11.31,135.71,135.66,3.6854]
[1726010811281,11.31,135.71,135.65,3.6856]
[1726010811883,11.31,135.71,135.65,14.9956]
[1726010812589,11.31,135.71,135.65,3.6856]
[1726010812788,11.31,135.71,135.65,14.9956]
[1726010814291,4.0742,135.74,135.66,3.6854]
[1726010814488,11.31,135.72,135.67,11.31]
[1726010815093,4.0742,135.74,135.67,11.31]
[1726010815294,11.31,135.72,135.67,11.31]
[1726010815693,11.31,135.72,135.66,3.6854]
[1726010816796,11.31,135.71,135.66,3.6854]
[1726010816999,11.31,135.7,135.65,3.6856]
[1726010817497,11.31,135.7,135.63,19.12082351]
[1726010817498,11.31,135.7,135.64,3.6858]
[1726010819094,11.31,135.7,135.65,14.9957]
[1726010819299,11.31,135.71,135.65,14.9957]
[1726010819593,11.31,135.71,135.65,11.31]
[1726010820598,11.31,135.72,135.66,11.31]
[1726010821193,11.31,135.71,135.66,14.9953]
[1726010821395,11.31,135.71,135.65,11.31]
[1726010821899,11.31,135.71,135.66,11.31]
[1726010822407,11.31,135.7,135.63,4.99902351]
[1726010822589,11.31,135.68,135.63,4.99902351]
[1726010822795,11.31,135.68,135.63,8.68512351]
[1726010822990,11.31,135.67,135.6,11.31]
[1726010823504,11.31,135.68,135.62,11.31]
[1726010823801,11.31,135.68,135.6,3.71820999]
[1726010824001,4.0742,135.74,135.66,11.31]
[1726010824395,11.31,135.71,135.66,11.31]
[1726010824901,4.0742,135.74,135.66,14.9954]
[1726010825093,11.31,135.72,135.66,14.9954]
[1726010826101,11.31,135.72,135.66,3.6854]
[1726010826501,11.31,135.69,135.62,11.31]
[1726010826791,11.31,135.69,135.64,11.31]
[1726010826991,11.31,135.71,135.65,11.31]
[1726010828102,11.31,135.7,135.64,14.9959]
[1726010828298,11.31,135.7,135.64,11.31]
[1726010828698,11.31,135.7,135.6,6.30445751]
[1726010828896,11.31,135.7,135.63,11.31]
[1726010829304,11.31,135.7,135.63,14.9961]
[1726010830597,11.31,135.68,135.63,3.6861]
[1726010830799,11.31,135.67,135.62,3.6864]
[1726010831202,11.31,135.67,135.61,14.9967]
[1726010833817,11.31,135.67,135.61,3.6867]
[1726010834113,4.0742,135.74,135.6,7.39165751]
[1726010834305,11.31,135.65,135.6,3.687]
[1726010834506,11.31,135.65,135.6,7.45017923]
[1726010835008,11.31,135.65,135.6,18.76017923]
[1726010837613,11.31,135.65,135.6,7.45017923]
[1726010838012,11.31,135.65,135.6,3.687]
[1726010838219,11.31,135.65,135.59,14.9971]
[1726010838412,11.31,135.65,135.59,11.31]
[1726010839613,11.31,135.64,135.58,11.31]
[1726010840023,11.31,135.65,135.59,11.31]
[1726010840322,11.31,135.65,135.6,3.6871]
[1726010847327,11.31,135.65,135.6,7.40511489]
[1726010847923,4.1361,135.69,135.61,3.6867]
[1726010848235,11.31,135.67,135.61,14.9967]
[1726010848425,11.31,135.67,135.61,11.31]
[1726010848831,11.31,135.67,135.62,3.6864]
[1726010849030,11.31,135.67,135.61,11.31]
[1726010849225,11.31,135.67,135.63,3.6862]
[1726010850430,11.31,135.68,135.63,3.6862]
[1726010850729,4.1361,135.69,135.63,11.31]
[1726010850730,15.4461,135.69,135.63,11.31]
[1726010851237,15.4461,135.69,135.64,3.6859]
[1726010851437,15.4461,135.69,135.63,11.31]
[1726010851839,15.4461,135.69,135.65,3.6857]
[1726010852027,15.4461,135.69,135.63,11.31]
[1726010852538,15.4461,135.69,135.64,3.6859]
[1726010855026,15.4461,135.69,135.64,11.31]
[1726010855634,14.0571,135.69,135.65,3.6856]
[1726010855932,11.31,135.69,135.65,3.6856]
[1726010856135,1.356,135.72,135.66,11.31]
[1726010856639,12.666,135.72,135.66,11.31]
[1726010856835,12.666,135.72,135.68,3.6848]
[1726010857036,12.666,135.72,135.67,3.64762255]
[1726010857639,12.666,135.72,135.66,11.31]
[1726010857841,12.666,135.72,135.67,3.62218945]
[1726010858340,12.666,135.72,135.67,7.30728945]
[1726010859333,1.356,135.72,135.68,3.6849]
[1726010860445,12.666,135.72,135.65,11.31]
[1726010861133,12.666,135.72,135.66,3.6853]
[1726010862235,12.666,135.72,135.65,14.9955]
[1726010863042,12.666,135.72,135.66,3.6854]
[1726010863344,12.666,135.72,135.66,14.9954]
[1726010865555,12.666,135.72,135.67,3.6851]
[1726010866547,12.666,135.72,135.67,14.9951]
[1726010866948,2.6667,135.74,135.69,11.31]
[1726010867149,13.9767,135.74,135.68,11.31]
[1726010867347,13.9767,135.74,135.68,14.92255144]
[1726010867535,13.9767,135.74,135.68,18.60745144]
[1726010868148,13.9767,135.74,135.69,3.6846]
[1726010871346,13.9767,135.74,135.68,18.60735144]
[1726010873142,13.9767,135.74,135.69,3.6845]
[1726010873850,13.9767,135.74,135.68,14.92255144]
[1726010873851,2.6667,135.74,135.68,14.92255144]
[1726010875346,2.6667,135.74,135.7,3.6842]
[1726010876251,2.6667,135.74,135.7,14.9942]
[1726010877152,1.3757,135.74,135.7,14.9942]
[1726010877351,11.31,135.77,135.71,3.6841]
[1726010877553,11.31,135.77,135.71,14.9941]
[1726010878254,11.31,135.77,135.72,3.6838]
[1726010883061,11.31,135.77,135.73,3.6834]
[1726010883750,11.31,135.77,135.71,11.31]
[1726010884352,11.31,135.77,135.71,14.994]
[1726010884751,11.31,135.76,135.71,14.994]
[1726010886558,11.31,135.76,135.7,3.6843]
[1726010887260,11.31,135.76,135.7,7.30020716]
[1726010890058,11.31,135.75,135.69,11.31]
[1726010890259,11.31,135.75,135.68,11.31]
[1726010890558,11.31,135.75,135.69,3.59859383]
[1726010890762,11.31,135.75,135.69,7.28319383]
[1726010890962,11.31,135.75,135.69,3.59859383]
[1726010893260,11.31,135.75,135.69,7.28319383]
[1726010896765,11.31,135.75,135.7,3.6844]
[1726010897564,2.6453,135.8,135.71,3.684]
[1726010897760,11.31,135.76,135.71,3.684]
[1726010901567,11.31,135.76,135.7,3.6843]
[1726010901768,11.31,135.74,135.7,3.6843]
[1726010905280,11.31,135.74,135.69,18.59309383]
[1726010915891,11.31,135.76,135.71,11.31]
[1726010916390,11.31,135.76,135.7,14.9943]
[1726010916594,11.31,135.76,135.71,3.6841]
[1726010918795,11.31,135.75,135.71,3.6841]
[1726010924801,11.31,135.76,135.72,3.6837]
[1726010926494,11.31,135.75,135.71,3.684]
[1726010926702,11.31,135.75,135.69,3.59859383]
[1726010926900,11.31,135.74,135.62,7.3726]
[1726010927095,11.31,135.72,135.62,7.3726]
[1726010927300,11.31,135.71,135.66,11.31]
[1726010927504,11.31,135.71,135.67,3.62297026]
[1726010927703,11.31,135.71,135.67,7.30797026]
[1726010931409,11.31,135.71,135.67,3.62297026]
[1726010931602,2.6453,135.8,135.67,3.62297026]
[1726010931802,11.31,135.71,135.67,3.62297026]
[1726010932004,11.31,135.71,135.67,7.30817026]
[1726010942516,11.31,135.71,135.67,3.62297026]
[1726010943018,11.31,135.73,135.67,7.30807026]
[1726010943317,2.6453,135.8,135.67,14.93297026]
[1726010943517,11.31,135.74,135.68,3.6847]
[1726010943713,2.6453,135.8,135.67,14.93297026]
[1726010943917,11.31,135.74,135.67,14.93297026]
[1726010944216,11.31,135.74,135.69,3.6846]
[1726010953833,2.6453,135.8,135.69,11.31]
[1726010954033,11.31,135.75,135.69,11.31]
[1726010954834,11.31,135.75,135.71,3.6841]
[1726010955036,11.31,135.75,135.69,11.31]
[1726010955231,11.31,135.75,135.67,3.62297026]
[1726010955439,11.31,135.75,135.69,14.9945]
[1726010955630,11.31,135.75,135.69,18.69953924]
[1726010956133,11.31,135.75,135.69,15.01503924]
[1726010958243,11.31,135.75,135.7,3.6843]
[1726010959236,2.6453,135.8,135.7,3.6843]
[1726010959440,2.6453,135.8,135.71,3.684]
[1726010959441,11.31,135.77,135.71,3.684]
[1726010961446,11.31,135.77,135.72,3.6838]
[1726010962036,2.6453,135.8,135.73,3.6835]
[1726010962340,2.6453,135.8,135.7,11.31]
[1726010962341,11.31,135.77,135.7,11.31]
[1726010963133,2.6453,135.8,135.7,11.31]
[1726010963343,11.31,135.78,135.71,11.31]
[1726010964147,11.31,135.77,135.72,3.6836]
[1726010964346,11.31,135.77,135.72,7.39887521]
[1726010967940,11.31,135.77,135.72,18.70887521]
[1726010969653,11.31,135.79,135.73,11.31]
[1726010970148,11.31,135.79,135.73,14.9934]
[1726010970742,11.31,135.78,135.73,3.6834]
[1726010975148,11.31,135.78,135.72,18.70897521]
[1726010977448,11.31,135.78,135.73,3.6835]
[1726010977650,2.6453,135.8,135.75,11.31]
[1726010977853,1.3487,135.81,135.76,11.31]
[1726010978049,1.3487,135.81,135.76,14.9925]
[1726010979057,1.3487,135.81,135.76,18.58925198]
[1726010979348,1.3487,135.81,135.76,14.90675198]
[1726010979555,11.31,135.83,135.78,11.31]
[1726010980852,11.31,135.83,135.78,14.93256923]
[1726010981559,1.3666,135.85,135.78,18.61456923]
[1726010981752,11.31,135.83,135.78,18.61456923]
[1726010982465,11.31,135.83,135.79,3.6818]
[1726010982646,1.3666,135.85,135.79,11.31]
[1726010982852,1.3666,135.85,135.8,11.31]
[1726010983152,1.3666,135.85,135.81,3.6813]
[1726010983353,11.31,135.83,135.74,2.7062]
[1726010983558,11.31,135.83,135.78,3.6821]
[1726010984156,11.31,135.83,135.78,14.9921]
[1726010984350,11.31,135.83,135.79,3.64744439]
[1726010986155,1.3666,135.85,135.8,11.31]
[1726010986657,1.3666,135.85,135.8,14.9916]
[1726010986862,1.3666,135.85,135.8,18.69354233]
[1726010988550,1.3666,135.85,135.81,3.6814]
[1726010989262,2.6866,135.86,135.81,14.9914]
[1726010992765,2.6866,135.86,135.82,11.31]
[1726010994556,2.6866,135.86,135.81,14.9914]
[1726010995468,2.6866,135.86,135.83,11.31]
[1726010997354,12.6668,135.88,135.83,11.31]
[1726010998759,1.3568,135.88,135.83,14.9908]
[1726010999564,1.3568,135.88,135.83,11.31]
[1726011001264,11.31,135.85,135.8,3.70194233]
[1726011001463,11.31,135.85,135.79,11.31]
[1726011001771,11.31,135.85,135.79,14.92765572]
[1726011001973,12.6381,135.87,135.81,11.31]
[1726011002363,1.3281,135.87,135.83,11.31]
[1726011002964,12.6381,135.87,135.81,11.31]
[1726011003170,12.6381,135.87,135.82,3.68419085]
[1726011003471,12.6381,135.87,135.81,11.31]
[1726011003861,12.6381,135.87,135.81,15.05677203]
[1726011004074,12.6381,135.87,135.81,18.73807203]
[1726011005376,1.3281,135.87,135.81,18.73807203]
[1726011005570,1.3281,135.87,135.82,3.681]
[1726011006769,1.3281,135.87,135.81,18.73807203]
[1726011010575,1.3568,135.88,135.83,11.31]
[1726011011675,12.6668,135.88,135.81,3.74677203]
[1726011011878,12.6668,135.88,135.81,11.31]
[1726011012169,12.6668,135.88,135.82,3.73821229]
[1726011012375,12.6668,135.88,135.82,7.41921229]
[1726011014978,1.4011,135.89,135.83,11.31]
[1726011015178,1.4011,135.89,135.84,11.31]
[1726011016079,1.4011,135.89,135.85,3.6803]
[1726011016477,11.31,135.9,135.85,3.6803]
[1726011021889,11.31,135.9,135.84,18.62850765]
[1726011025588,14.0075,135.92,135.87,11.31]
[1726011026187,14.0075,135.92,135.86,3.6799]
[1726011031391,2.6975,135.92,135.86,3.6799]
[1726011031592,11.31,135.91,135.86,3.6799]
[1726011035289,14.0075,135.92,135.86,3.6799]
[1726011037692,2.6975,135.92,135.86,3.6799]
[1726011037886,11.31,135.91,135.86,3.6799]
[1726011038596,11.31,135.89,135.76,7.3652]
[1726011038795,11.31,135.86,135.77,1.2749]
[1726011038994,11.31,135.85,135.78,3.64389678]
[1726011039192,2.6975,135.92,135.8,11.31]
[1726011039388,11.31,135.85,135.8,11.31]
[1726011039588,2.6975,135.92,135.8,11.31]
[1726011039794,1.09671646,135.91,135.81,11.31]
[1726011039992,11.31,135.87,135.81,11.31]
[1726011040800,11.31,135.88,135.82,14.991]
[1726011040998,11.31,135.89,135.83,11.31]
[1726011043298,11.31,135.89,135.83,14.9908]
[1726011046509,11.31,135.89,135.8,2.6916]
[1726011046510,11.31,135.89,135.82,11.31]
[1726011046697,2.6975,135.92,135.8,2.6916]
[1726011046698,11.31,135.88,135.8,2.6916]
[1726011046903,11.31,135.86,135.81,3.6813]
[1726011047109,11.31,135.86,135.8,14.0016]
[1726011047607,11.31,135.86,135.8,17.6831]
[1726011051716,18.51263084,135.92,135.8,11.31]
[1726011051915,11.31,135.85,135.8,11.31]
[1726011054315,11.31,135.85,135.8,14.9916]
[1726011055308,11.31,135.85,135.8,11.31]
[1726011057818,11.31,135.85,135.8,14.9916]
[1726011058615,11.31,135.85,135.79,7.43519827]
[1726011058816,11.31,135.85,135.79,14.9918]
[1726011059420,18.51263084,135.92,135.79,15.04489893]
[1726011059620,11.31,135.84,135.78,14.9921]
[1726011059921,11.31,135.84,135.78,18.7104321]
[1726011060311,2.7416,135.85,135.77,16.2673]
[1726011060519,11.31,135.82,135.77,11.31]
[1726011060713,11.31,135.82,135.75,11.31]
[1726011061019,4.1345,135.85,135.78,11.31]
[1726011061213,11.31,135.84,135.78,11.31]
[1726011061724,11.31,135.84,135.78,3.682]
[1726011061936,11.31,135.84,135.77,11.31]
[1726011062427,11.31,135.83,135.77,14.9923]
[1726011065229,11.31,135.8,135.73,1.3929]